fUSD/lending_fUSD_20260624
["ID","MTS","AMOUNT","RATE_DAILY","PERIOD"]
[426311400,1782277848000,-2157.14243826,0.00020963,2]
[426311401,1782277848000,-151.0,0.00020963,2]
[426311398,1782277848000,-1024.47451135,0.00020963,2]
[426311382,1782277848000,-10017.58431527,0.000209,2]
[426311464,1782277849000,-871.06772465,0.00021511,2]
[426311460,1782277849000,-201.93286098,0.00021509,2]
[426311465,1782277849000,-225.18697532,0.00021511,2]
[426311455,1782277849000,-1675.58435215,0.000214,2]
[426311458,1782277849000,-607.70999978,0.00021464,2]
[426311456,1782277849000,-608.81680232,0.00021449,7]
[426311457,1782277849000,-150.0,0.00021456,2]
[426311459,1782277849000,-150.0,0.000215,2]
[426311462,1782277849000,-599.60298507,0.0002151,2]
[426311461,1782277849000,-670.58624095,0.0002151,2]
[426311474,1782277849000,-1024.47451135,0.00021511,2]
[426311467,1782277849000,-200.0,0.00021511,2]
[426311468,1782277849000,-4540.85512104,0.00021511,2]
[426311475,1782277849000,-225.18697532,0.00021511,2]
[426311473,1782277849000,-225.18697532,0.00021511,2]
[426311472,1782277849000,-225.18697532,0.00021511,2]
[426311469,1782277849000,-151.0,0.00021511,2]
[426311470,1782277849000,-209.40437684,0.00021511,2]
[426311466,1782277849000,-197.15015113,0.00021511,2]
[426311471,1782277849000,-10272.10520532,0.00021511,2]
[426311454,1782277849000,-10017.58431527,0.000214,2]
[426311463,1782277849000,-599.60298507,0.00021511,2]
[426311451,1782277849000,-5483.38,0.0002137,2]
[426311437,1782277849000,-608.81680232,0.00021071,2]
[426311448,1782277849000,-608.81680232,0.00021323,7]
[426311477,1782277849000,-151.0,0.00021511,2]
[426311430,1782277849000,-603.0,0.0002105,2]
[426311431,1782277849000,-169.0,0.0002105,2]
[426311432,1782277849000,-1865.0,0.0002105,2]
[426311429,1782277849000,-438.0,0.0002105,2]
[426311433,1782277849000,-2781.0,0.0002105,2]
[426311434,1782277849000,-375.0,0.0002105,2]
[426311435,1782277849000,-312.0,0.0002105,2]
[426311436,1782277849000,-1171.5532404,0.00021054,2]
[426311438,1782277849000,-10017.58431527,0.000211,2]
[426311452,1782277849000,-975.57,0.0002137,2]
[426311439,1782277849000,-608.81680232,0.00021197,7]
[426311440,1782277849000,-1112.851132,0.000212,2]
[426311442,1782277849000,-649.0,0.00021212,3]
[426311443,1782277849000,-4540.85512104,0.00021237,2]
[426311445,1782277849000,-785.0,0.00021271,2]
[426311444,1782277849000,-162.2633031,0.00021239,7]
[426311446,1782277849000,-889.43,0.00021273,2]
[426311449,1782277849000,-500.0,0.00021356,7]
[426311447,1782277849000,-1917.92,0.000213,2]
[426311453,1782277849000,-1112.851132,0.000214,2]
[426311450,1782277849000,-536.43854175,0.00021356,7]
[426311441,1782277849000,-1675.58435215,0.000212,2]
[426311476,1782277849000,-2236.95670847,0.00021511,2]
[426311521,1782277849000,-2177.0,0.000218,2]
[426311478,1782277849000,-871.0,0.0002152,2]
[426311507,1782277849000,-500.0,0.00021705,2]
[426311515,1782277849000,-500.0,0.00021705,2]
[426311511,1782277849000,-500.0,0.00021705,2]
[426311512,1782277849000,-220.23601145,0.00021705,2]
[426311513,1782277849000,-500.0,0.00021705,2]
[426311508,1782277849000,-500.0,0.00021705,2]
[426311510,1782277849000,-500.0,0.00021705,2]
[426311506,1782277849000,-500.0,0.00021705,2]
[426311514,1782277849000,-500.0,0.00021705,2]
[426311517,1782277849000,-8409.0,0.00021772,3]
[426311503,1782277849000,-179.07,0.000217,3]
[426311518,1782277849000,-4540.85512104,0.00021785,2]
[426311516,1782277849000,-174.10620517,0.00021705,2]
[426311523,1782277849000,-162.2633031,0.00021827,14]
[426311528,1782277849000,-200.0,0.000219,7]
[426311522,1782277849000,-649.0,0.00021818,3]
[426311524,1782277849000,-608.81680232,0.00021827,14]
[426311519,1782277849000,-403.22,0.000218,14]
[426311526,1782277849000,-498.59,0.00021864,2]
[426311527,1782277849000,-515.1,0.00021864,2]
[426311525,1782277849000,-224.15,0.0002185,2]
[426311479,1782277849000,-162.2633031,0.00021533,14]
[426311520,1782277849000,-10017.58431527,0.000218,2]
[426311499,1782277849000,-500.0,0.000217,3]
[426311509,1782277849000,-500.0,0.00021705,2]
[426311504,1782277849000,-608.81680232,0.00021701,14]
[426311480,1782277849000,-338.57,0.0002156,14]
[426311481,1782277849000,-397.42,0.0002156,14]
[426311485,1782277849000,-10017.58431527,0.000216,2]
[426311482,1782277849000,-608.81680232,0.00021575,14]
[426311483,1782277849000,-350.0,0.000216,3]
[426311484,1782277849000,-1112.851132,0.000216,2]
[426311486,1782277849000,-216.42324807,0.000216,7]
[426311502,1782277849000,-500.0,0.000217,3]
[426311489,1782277849000,-306.18,0.00021644,4]
[426311488,1782277849000,-785.0,0.00021603,2]
[426311491,1782277849000,-1675.58435215,0.000217,2]
[426311487,1782277849000,-13679.48,0.00021603,2]
[426311492,1782277849000,-500.0,0.000217,3]
[426311500,1782277849000,-500.0,0.000217,3]
[426311490,1782277849000,-223.72,0.00021679,14]
[426311496,1782277849000,-500.0,0.000217,3]
[426311497,1782277849000,-500.0,0.000217,3]
[426311498,1782277849000,-500.0,0.000217,3]
[426311501,1782277849000,-500.0,0.000217,3]
[426311495,1782277849000,-500.0,0.000217,3]
[426311493,1782277849000,-500.0,0.000217,3]
[426311494,1782277849000,-500.0,0.000217,3]
[426311505,1782277849000,-500.0,0.00021705,2]
[426311535,1782277850000,-5000.0,0.00021918,2]
[426311531,1782277850000,-1675.58435215,0.000219,2]
[426311532,1782277850000,-159.8758717,0.000219,2]
[426311530,1782277850000,-1112.851132,0.000219,2]
[426311529,1782277850000,-265.5,0.000219,2]
[426311533,1782277850000,-609.1802455,0.00021917,2]
[426311536,1782277850000,-241.71,0.00021918,2]
[426311539,1782277850000,-785.0,0.00021936,2]
[426311537,1782277850000,-166.0,0.00021918,2]
[426311544,1782277850000,-216.0,0.00022,21]
[426311534,1782277850000,-151.000011,0.00021918,2]
[426311542,1782277850000,-202.0,0.00021999,10]
[426311538,1782277850000,-166.0,0.00021918,2]
[426311540,1782277850000,-299.29152967,0.00021963,2]
[426311543,1782277850000,-5185.38,0.00022,10]
[426311547,1782277850000,-25897.91982045,0.00022,4]
[426311546,1782277850000,-500.0,0.00022,3]
[426311545,1782277850000,-270.00427378,0.00022,3]
[426311541,1782277850000,-2000.0,0.00021978,7]
[426311549,1782277851000,-422.89223244,0.00022,4]
[426311548,1782277851000,-1501.07,0.00022,4]
[426311650,1782279033000,-254.07310494,8.951e-05,2]
[426311652,1782279033000,-500.0,9.042e-05,2]
[426311657,1782279033000,-160.0,9.436e-05,2]
[426311655,1782279033000,-250.0,9.228e-05,2]
[426311649,1782279033000,-1107.74340297,8.847e-05,2]
[426311660,1782279033000,-420.0,9.72e-05,2]
[426311654,1782279033000,-500.0,9.227e-05,2]
[426311653,1782279033000,-150.0,9.187e-05,2]
[426311658,1782279033000,-216.42324807,9.437e-05,2]
[426311651,1782279033000,-245.92689506,8.951e-05,2]
[426311662,1782279033000,-11100.37229975,0.00010571,2]
[426311656,1782279033000,-250.0,9.228e-05,2]
[426311648,1782279033000,-300.0,8.836e-05,2]
[426311644,1782279033000,-150.0,8.472e-05,2]
[426311645,1782279033000,-157.0,8.556e-05,2]
[426311646,1782279033000,-632.32184715,8.622e-05,2]
[426311643,1782279033000,-168.5848378,8.389e-05,2]
[426311641,1782279033000,-504.2143187,8.389e-05,2]
[426311642,1782279033000,-7.74147536,8.389e-05,2]
[426311637,1782279033000,-427.03413447,8.313e-05,2]
[426311640,1782279033000,-500.0,8.388e-05,2]
[426311638,1782279033000,-1074.29652283,8.388e-05,2]
[426311639,1782279033000,-472.80859832,8.388e-05,2]
[426311636,1782279033000,-150.0,8.263e-05,2]
[426311635,1782279033000,-150.0,8.137e-05,2]
[426311659,1782279033000,-159.55,9.483e-05,2]
[426311647,1782279033000,-150.0,8.77e-05,2]
[426311666,1782279033000,-183.98051743,0.00011344,2]
[426311672,1782279033000,-159.55,0.00011853,2]
[426311665,1782279033000,-1805.47,0.00011253,2]
[426311661,1782279033000,-255.0,0.00010106,2]
[426311692,1782279033000,-879.38166754,0.0001302,2]
[426311689,1782279033000,-170.46,0.00012859,2]
[426311687,1782279033000,-361.4276992,0.00012763,2]
[426311688,1782279033000,-1253.54,0.00012831,2]
[426311690,1782279033000,-166.66,0.00012882,2]
[426311686,1782279033000,-166.66,0.00012616,2]
[426311685,1782279033000,-1253.54,0.00012533,2]
[426311682,1782279033000,-328.78638644,0.000124,2]
[426311683,1782279033000,-444.8565,0.000124,2]
[426311680,1782279033000,-163.45840099,0.00012329,2]
[426311681,1782279033000,-219.78578273,0.000124,2]
[426311678,1782279033000,-1253.54,0.00012234,2]
[426311679,1782279033000,-3003.06,0.00012257,2]
[426311691,1782279033000,-20622.93,0.00012892,2]
[426311676,1782279033000,-262.25,0.00012035,2]
[426311677,1782279033000,-150.0,0.00012234,2]
[426311663,1782279033000,-321.0,0.00010692,2]
[426311669,1782279033000,-3701.55,0.00011793,2]
[426311668,1782279033000,-200.0,0.00011568,2]
[426311670,1782279033000,-255.13,0.00011802,2]
[426311667,1782279033000,-66.01948257,0.00011344,2]
[426311664,1782279033000,-328.0,0.00011116,2]
[426311674,1782279033000,-1253.54,0.00011936,2]
[426311684,1782279033000,-3728.81,0.00012511,2]
[426311673,1782279033000,-150.14142423,0.00011936,2]
[426311675,1782279033000,-197.02,0.00012016,2]
[426311671,1782279033000,-310.75,0.0001182,2]
[426311729,1782279034000,-520.80431641,0.00014999,2]
[426311726,1782279034000,-501.30500105,0.00014749,2]
[426311725,1782279034000,-13977.0,0.000146,2]
[426311724,1782279034000,-319.0,0.0001425,2]
[426311722,1782279034000,-500.0,0.00014249,2]
[426311723,1782279034000,-500.0,0.00014249,2]
[426311731,1782279034000,-166.6721436,0.00015,2]
[426311730,1782279034000,-241.28027352,0.00015,2]
[426311720,1782279034000,-159.55,0.00014224,2]
[426311728,1782279034000,-5800.0,0.000149,2]
[426311727,1782279034000,-5800.0,0.00014891,2]
[426311735,1782279034000,-197.02,0.00015021,2]
[426311733,1782279034000,-166.68857439,0.00015,3]
[426311737,1782279034000,-1000.0,0.00015218,2]
[426311736,1782279034000,-900.0,0.00015068,2]
[426311738,1782279034000,-250.0,0.00015309,2]
[426311744,1782279034000,-2000.0,0.00015659,2]
[426311739,1782279034000,-2500.0,0.00015493,2]
[426311741,1782279034000,-1500.0,0.00015597,2]
[426311740,1782279034000,-5529.0,0.000155,5]
[426311743,1782279034000,-500.0,0.00015659,2]
[426311732,1782279034000,-500.0,0.00015,2]
[426311742,1782279034000,-2000.0,0.00015659,2]
[426311734,1782279034000,-5529.0,0.00015,3]
[426311721,1782279034000,-500.0,0.00014249,2]
[426311701,1782279034000,-5850.49649049,0.00013268,2]
[426311715,1782279034000,-37937.36665975,0.00013814,2]
[426311746,1782279034000,-10000.0,0.00015736,2]
[426311693,1782279034000,-587.81931778,0.0001302,2]
[426311694,1782279034000,-450.53195804,0.0001302,2]
[426311695,1782279034000,-29.42705664,0.0001302,2]
[426311697,1782279034000,-108.01792355,0.0001313,2]
[426311698,1782279034000,-166.66,0.00013148,2]
[426311700,1782279034000,-318.59350951,0.00013268,2]
[426311702,1782279034000,-158.64,0.00013396,2]
[426311703,1782279034000,-166.66,0.00013413,2]
[426311696,1782279034000,-1145.52207645,0.0001313,2]
[426311705,1782279034000,-192.38,0.00013662,2]
[426311717,1782279034000,-250.0,0.00014,2]
[426311699,1782279034000,-199.5,0.00013263,2]
[426311706,1782279034000,-166.66,0.00013679,2]
[426311707,1782279034000,-1000.0,0.00013689,2]
[426311711,1782279034000,-4186.6412,0.00013714,2]
[426311708,1782279034000,-500.0,0.00013698,2]
[426311714,1782279034000,-500.0,0.00013777,2]
[426311710,1782279034000,-6830.8209,0.00013714,2]
[426311712,1782279034000,-2890.55,0.00013743,2]
[426311718,1782279034000,-500.0,0.00014052,2]
[426311709,1782279034000,-200.0,0.00013699,2]
[426311719,1782279034000,-29256.36152411,0.00014117,2]
[426311716,1782279034000,-166.66,0.00013945,2]
[426311704,1782279034000,-197.02,0.00013519,2]
[426311756,1782279034000,-543.97,0.00016337,2]
[426311713,1782279034000,-1024.44,0.00013775,2]
[426311752,1782279034000,-1277.0,0.00016146,2]
[426311797,1782279034000,-1057.0,0.00017789,5]
[426311779,1782279034000,-500.0,0.00017099,2]
[426311780,1782279034000,-500.0,0.00017099,2]
[426311776,1782279034000,-501.30500105,0.00016947,2]
[426311777,1782279034000,-500.0,0.00017099,2]
[426311778,1782279034000,-240.59271287,0.00017099,2]
[426311782,1782279034000,-500.0,0.00017099,2]
[426311784,1782279034000,-500.0,0.00017099,2]
[426311794,1782279034000,-10023.56750253,0.000174,2]
[426311783,1782279034000,-500.0,0.00017099,2]
[426311785,1782279034000,-400.0,0.000171,2]
[426311775,1782279034000,-299.99,0.00016922,4]
[426311786,1782279034000,-10023.56750253,0.000171,2]
[426311788,1782279034000,-1672.7364795,0.00017241,2]
[426311790,1782279034000,-400.0,0.00017299,2]
[426311792,1782279034000,-10023.56750253,0.000173,2]
[426311793,1782279034000,-400.0,0.000174,2]
[426311791,1782279034000,-400.0,0.000173,2]
[426311795,1782279034000,-400.0,0.000176,2]
[426311799,1782279034000,-500.0,0.00017799,2]
[426311796,1782279034000,-10023.56750253,0.000176,2]
[426311798,1782279034000,-1734.62772924,0.00017789,2]
[426311800,1782279034000,-10023.56750253,0.000178,2]
[426311751,1782279034000,-1361.0,0.00016146,2]
[426311789,1782279034000,-919.45802507,0.00017288,2]
[426311772,1782279034000,-10023.56750253,0.000169,2]
[426311787,1782279034000,-1128.0,0.00017151,2]
[426311773,1782279034000,-9999.99,0.00016922,2]
[426311750,1782279034000,-500.0,0.00016146,2]
[426311770,1782279034000,-171.43,0.00016712,2]
[426311749,1782279034000,-1555.5,0.00016145,2]
[426311753,1782279034000,-1229.0,0.00016146,2]
[426311755,1782279034000,-500.0,0.00016337,2]
[426311748,1782279034000,-300.0,0.00016,2]
[426311754,1782279034000,-3648.0,0.00016146,2]
[426311747,1782279034000,-160.84595224,0.00015873,2]
[426311757,1782279034000,-500.0,0.00016337,2]
[426311758,1782279034000,-500.0,0.00016337,2]
[426311760,1782279034000,-500.0,0.00016337,2]
[426311759,1782279034000,-500.0,0.00016337,2]
[426311745,1782279034000,-500.0,0.00015659,2]
[426311761,1782279034000,-504.20791539,0.00016437,2]
[426311774,1782279034000,-7066.68,0.00016922,2]
[426311781,1782279034000,-510.5756982,0.00017099,2]
[426311771,1782279034000,-400.0,0.000169,2]
[426311767,1782279034000,-900.0,0.00016438,2]
[426311766,1782279034000,-875.6,0.00016438,2]
[426311768,1782279034000,-197.02,0.00016523,2]
[426311765,1782279034000,-357.17,0.00016437,2]
[426311769,1782279034000,-1613.0535,0.00016693,2]
[426311763,1782279034000,-500.0,0.00016437,2]
[426311764,1782279034000,-500.0,0.00016437,2]
[426311762,1782279034000,-543.97,0.00016437,2]
[426311843,1782279035000,-500.0,0.00018885,2]
[426311841,1782279035000,-578.20924308,0.00018885,2]
[426311839,1782279035000,-500.0,0.00018885,2]
[426311840,1782279035000,-151.0,0.00018885,2]
[426311837,1782279035000,-500.0,0.00018885,2]
[426311833,1782279035000,-151.0,0.00018885,2]
[426311836,1782279035000,-174.61919141,0.00018885,2]
[426311835,1782279035000,-151.0,0.00018885,2]
[426311845,1782279035000,-1865.36488656,0.00018885,2]
[426311844,1782279035000,-500.0,0.00018885,2]
[426311842,1782279035000,-151.0,0.00018885,2]
[426311838,1782279035000,-151.0,0.00018885,2]
[426311846,1782279035000,-151.0,0.00018885,2]
[426311859,1782279035000,-151.0,0.00018885,2]
[426311849,1782279035000,-152.0,0.00018885,2]
[426311848,1782279035000,-151.0,0.00018885,2]
[426311847,1782279035000,-187.78006524,0.00018885,2]
[426311856,1782279035000,-151.0,0.00018885,2]
[426311855,1782279035000,-151.0,0.00018885,2]
[426311853,1782279035000,-151.0,0.00018885,2]
[426311852,1782279035000,-500.0,0.00018885,2]
[426311857,1782279035000,-187.78006524,0.00018885,2]
[426311854,1782279035000,-646.65982734,0.00018885,2]
[426311851,1782279035000,-500.0,0.00018885,2]
[426311858,1782279035000,-152.0,0.00018885,2]
[426311860,1782279035000,-500.0,0.00018885,2]
[426311834,1782279035000,-151.0,0.00018885,2]
[426311850,1782279035000,-151.0,0.00018885,2]
[426311828,1782279035000,-155.32552989,0.00018885,2]
[426311802,1782279035000,-200.0,0.00017899,2]
[426311824,1782279035000,-10023.56750253,0.000185,2]
[426311801,1782279035000,-160.84595224,0.00017873,2]
[426311806,1782279035000,-10023.56750253,0.00018,2]
[426311804,1782279035000,-441.49930661,0.00018,2]
[426311805,1782279035000,-166.54115028,0.00018,2]
[426311862,1782279035000,-151.0,0.00018885,2]
[426311803,1782279035000,-350.0,0.00018,2]
[426311808,1782279035000,-10023.56750253,0.000181,2]
[426311819,1782279035000,-166.54115028,0.000184,2]
[426311818,1782279035000,-441.49930661,0.000184,2]
[426311807,1782279035000,-197.02,0.00018025,2]
[426311820,1782279035000,-875.6,0.0001841,2]
[426311809,1782279035000,-294.20022413,0.00018181,2]
[426311811,1782279035000,-166.54115028,0.000182,2]
[426311810,1782279035000,-441.49930661,0.000182,2]
[426311813,1782279035000,-919.45802507,0.0001824,2]
[426311812,1782279035000,-1947.16,0.00018228,2]
[426311816,1782279035000,-10023.56750253,0.000183,2]
[426311815,1782279035000,-164.25495325,0.00018278,2]
[426311814,1782279035000,-249.0,0.00018263,2]
[426311817,1782279035000,-1798.80895522,0.00018337,2]
[426311821,1782279035000,-2000.0,0.0001846,2]
[426311822,1782279035000,-500.0,0.0001846,2]
[426311832,1782279035000,-151.0,0.00018885,2]
[426311826,1782279035000,-10023.56750253,0.000187,2]
[426311825,1782279035000,-441.49930661,0.000187,2]
[426311823,1782279035000,-441.49930661,0.000185,2]
[426311827,1782279035000,-250.0,0.00018885,2]
[426311830,1782279035000,-151.0,0.00018885,2]
[426311831,1782279035000,-200.0,0.00018885,2]
[426311829,1782279035000,-151.0,0.00018885,2]
[426311861,1782279035000,-500.0,0.00018885,2]
[426311869,1782279035000,-152.0,0.00018885,2]
[426311863,1782279035000,-152.0,0.00018885,2]
[426311895,1782279035000,-151.0,0.00018885,2]
[426311900,1782279035000,-151.0,0.00018885,2]
[426311902,1782279035000,-500.0,0.00018885,2]
[426311904,1782279035000,-152.0,0.00018885,2]
[426311896,1782279035000,-151.0,0.00018885,2]
[426311903,1782279035000,-151.0,0.00018885,2]
[426311905,1782279035000,-151.0,0.00018885,2]
[426311907,1782279035000,-152.0,0.00018885,2]
[426311906,1782279035000,-151.0,0.00018885,2]
[426311908,1782279035000,-500.0,0.00018885,2]
[426311909,1782279035000,-151.0,0.00018885,2]
[426311920,1782279035000,-157.72012091,0.00018885,2]
[426311910,1782279035000,-151.0,0.00018885,2]
[426311897,1782279035000,-500.0,0.00018885,2]
[426311911,1782279035000,-152.0,0.00018885,2]
[426311912,1782279035000,-500.0,0.00018885,2]
[426311916,1782279035000,-500.0,0.00018885,2]
[426311914,1782279035000,-151.0,0.00018885,2]
[426311918,1782279035000,-2724.51307262,0.00018885,2]
[426311917,1782279035000,-187.78006524,0.00018885,2]
[426311915,1782279035000,-500.0,0.00018885,2]
[426311921,1782279035000,-8565.75555911,0.00018885,2]
[426311923,1782279035000,-819.57960908,0.00018885,2]
[426311925,1782279035000,-10023.56750253,0.000189,2]
[426311924,1782279035000,-187.78006524,0.00018885,2]
[426311926,1782279035000,-155.32552989,0.0001894,2]
[426311922,1782279035000,-187.78006524,0.00018885,2]
[426311864,1782279035000,-500.0,0.00018885,2]
[426311913,1782279035000,-152.0,0.00018885,2]
[426311898,1782279035000,-500.0,0.00018885,2]
[426311919,1782279035000,-696.85417972,0.00018885,2]
[426311899,1782279035000,-152.0,0.00018885,2]
[426311901,1782279035000,-151.0,0.00018885,2]
[426311866,1782279035000,-500.0,0.00018885,2]
[426311868,1782279035000,-151.0,0.00018885,2]
[426311867,1782279035000,-500.0,0.00018885,2]
[426311870,1782279035000,-151.0,0.00018885,2]
[426311872,1782279035000,-500.0,0.00018885,2]
[426311873,1782279035000,-152.0,0.00018885,2]
[426311874,1782279035000,-151.0,0.00018885,2]
[426311879,1782279035000,-151.0,0.00018885,2]
[426311876,1782279035000,-500.0,0.00018885,2]
[426311877,1782279035000,-500.0,0.00018885,2]
[426311878,1782279035000,-152.0,0.00018885,2]
[426311875,1782279035000,-151.0,0.00018885,2]
[426311880,1782279035000,-151.0,0.00018885,2]
[426311881,1782279035000,-500.0,0.00018885,2]
[426311865,1782279035000,-151.0,0.00018885,2]
[426311893,1782279035000,-500.0,0.00018885,2]
[426311892,1782279035000,-152.0,0.00018885,2]
[426311890,1782279035000,-500.0,0.00018885,2]
[426311891,1782279035000,-151.0,0.00018885,2]
[426311871,1782279035000,-500.0,0.00018885,2]
[426311883,1782279035000,-152.0,0.00018885,2]
[426311887,1782279035000,-152.0,0.00018885,2]
[426311885,1782279035000,-151.0,0.00018885,2]
[426311894,1782279035000,-500.0,0.00018885,2]
[426311888,1782279035000,-151.0,0.00018885,2]
[426311889,1782279035000,-500.0,0.00018885,2]
[426311884,1782279035000,-151.0,0.00018885,2]
[426311882,1782279035000,-500.0,0.00018885,2]
[426311886,1782279035000,-500.0,0.00018885,2]
[426311959,1782279036000,-155.32552989,0.0001927,2]
[426311966,1782279036000,-155.32552989,0.0001938,2]
[426311970,1782279036000,-151.0,0.00019433,2]
[426311962,1782279036000,-155.32552989,0.00019325,2]
[426311963,1782279036000,-151.0,0.00019325,2]
[426311968,1782279036000,-151.0,0.0001938,2]
[426311969,1782279036000,-10023.56750253,0.000194,2]
[426311967,1782279036000,-151.0,0.0001938,2]
[426311964,1782279036000,-151.0,0.00019325,2]
[426311961,1782279036000,-151.0,0.0001927,2]
[426311965,1782279036000,-667.24,0.00019355,7]
[426311971,1782279036000,-200.0,0.00019433,2]
[426311960,1782279036000,-151.0,0.0001927,2]
[426311981,1782279036000,-8882.6885148,0.00019433,2]
[426311974,1782279036000,-194.72792766,0.00019433,2]
[426311973,1782279036000,-1934.38338736,0.00019433,2]
[426311978,1782279036000,-2724.51307262,0.00019433,2]
[426311975,1782279036000,-151.0,0.00019433,2]
[426311983,1782279036000,-194.72792766,0.00019433,2]
[426311976,1782279036000,-518.5,0.00019433,2]
[426311977,1782279036000,-194.72792766,0.00019433,2]
[426311972,1782279036000,-181.08010149,0.00019433,2]
[426311979,1782279036000,-696.85417972,0.00019433,2]
[426311980,1782279036000,-157.72012091,0.00019433,2]
[426311985,1782279036000,-155.32552989,0.00019435,2]
[426311987,1782279036000,-151.0,0.00019435,2]
[426311993,1782279036000,-151.0,0.00019545,2]
[426311984,1782279036000,-194.72792766,0.00019433,2]
[426311982,1782279036000,-819.57960908,0.00019433,2]
[426311956,1782279036000,-155.32552989,0.00019215,2]
[426311989,1782279036000,-151.0,0.0001949,2]
[426311953,1782279036000,-151.0,0.0001916,2]
[426311929,1782279036000,-168.69,0.00018981,2]
[426311927,1782279036000,-151.0,0.0001894,2]
[426311928,1782279036000,-151.0,0.0001894,2]
[426311931,1782279036000,-198.159,0.00018991,2]
[426311932,1782279036000,-155.32552989,0.00018995,2]
[426311933,1782279036000,-151.0,0.00018995,2]
[426311930,1782279036000,-4383.374,0.00018991,2]
[426311935,1782279036000,-155.32552989,0.0001905,2]
[426311946,1782279036000,-1361.0,0.00019146,2]
[426311945,1782279036000,-501.30500105,0.00019145,2]
[426311934,1782279036000,-151.0,0.00018995,2]
[426311937,1782279036000,-151.0,0.0001905,2]
[426311939,1782279036000,-500.0,0.0001907,2]
[426311936,1782279036000,-151.0,0.0001905,2]
[426311940,1782279036000,-500.0,0.0001907,2]
[426311944,1782279036000,-151.0,0.00019105,2]
[426311942,1782279036000,-155.32552989,0.00019105,2]
[426311943,1782279036000,-151.0,0.00019105,2]
[426311941,1782279036000,-10023.56750253,0.000191,2]
[426311938,1782279036000,-543.97,0.0001907,2]
[426311947,1782279036000,-1277.0,0.00019146,2]
[426311949,1782279036000,-3648.0,0.00019146,2]
[426311950,1782279036000,-2724.51307262,0.00019159,2]
[426311952,1782279036000,-151.0,0.0001916,2]
[426311955,1782279036000,-10023.56750253,0.000192,2]
[426311958,1782279036000,-151.0,0.00019215,2]
[426311948,1782279036000,-1229.0,0.00019146,2]
[426311951,1782279036000,-155.32552989,0.0001916,2]
[426311957,1782279036000,-151.0,0.00019215,2]
[426311954,1782279036000,-919.45802507,0.00019191,2]
[426311986,1782279036000,-151.0,0.00019435,2]
[426312014,1782279036000,-2000.0,0.000199,2]
[426311994,1782279036000,-10023.56750253,0.000196,2]
[426312032,1782279036000,-338.0,0.0002,2]
[426312027,1782279036000,-201.93286098,0.00019981,2]
[426312034,1782279036000,-10023.56750253,0.0002,2]
[426312028,1782279036000,-819.57960908,0.00019981,2]
[426312024,1782279036000,-157.72012091,0.00019981,2]
[426312026,1782279036000,-9211.34798984,0.00019981,2]
[426312035,1782279036000,-352.0,0.0002,2]
[426312030,1782279036000,-400.0,0.0002,2]
[426312033,1782279036000,-221.02990614,0.0002,2]
[426312029,1782279036000,-201.93286098,0.00019981,2]
[426312031,1782279036000,-990.04022754,0.0002,2]
[426312037,1782279036000,-161.67652287,0.0002,2]
[426312047,1782279036000,-2364.0,0.0002,2]
[426312025,1782279036000,-2724.51307262,0.00019981,2]
[426312048,1782279036000,-319.0,0.0002,2]
[426312036,1782279036000,-1685.0,0.0002,2]
[426312040,1782279036000,-10042.01635551,0.0002,2]
[426312043,1782279036000,-512.0,0.0002,2]